{"text_format":"3","workbook":"xlsx","n_sheets":3,"sheets":["Logique","Requêtes exemples","LOG"],"not_rendered":{"charts":3,"macros":1,"external_links":2},"read":"whole","date_system":"1900"}

{"sheet":"Logique","index":0,"n_rows":16,"n_cols":9,"rows_kept":16,"merged":[[4,7,4,8],[5,6,7,8],[12,7,12,8],[13,7,13,8],[14,7,14,8]]}
["Département","Entête","Coordonnées LII étendu","Fin",null,null,"Pour département 58","X","Y"]
["58","http://inventaire-forestier.ign.fr/cartov2/proxy/getTile?LAYERS=v58tf&TRANSPARENT=true&VISIBILITY=true&FORMAT=image%2FPNG&SERVICE=WMS&VERSION=1.1.1&REQUEST=GetMap&STYLES=&EXCEPTIONS=application%2Fvnd.ogc.se_inimage&SRS=EPSG%3A27572&BBOX=",null,"&WIDTH=1000&HEIGHT=1000",null,null,"min",637459,2182311]
["03","http://inventaire-forestier.ign.fr/cartov2/proxy/getTile?LAYERS=v03tf&TRANSPARENT=true&VISIBILITY=true&FORMAT=image%2FPNG&SERVICE=WMS&VERSION=1.1.1&REQUEST=GetMap&STYLES=&EXCEPTIONS=application%2Fvnd.ogc.se_inimage&SRS=EPSG%3A27572&BBOX=",null,"&WIDTH=1000&HEIGHT=1000",null,null,"max",744704,2288856]
[{"$nulls":6},"Delta (km)",{"$f":"(H3-H2)/1000","v":107.245},{"$f":"(I3-I2)/1000","v":106.545}]
[{"$nulls":6},"Surface",{"$f":"H4*I4","v":11426.418525000001}]
[{"$nulls":6},"Le but est d'extraire des carrés de 1000 x 1000 m en définition 1000 x 1000 pixels"]
[]
[]
[{"$nulls":7},"X","Y"]
[{"$nulls":6},"nouveau max",{"$f":"H2+(INT(H4)+1)*1000","v":745459},{"$f":"I2+(INT(I4)+1)*1000","v":2289311}]
[{"$nulls":6},"Delta (mètres)",{"$f":"H10-H2","v":108000},{"$f":"I10-I2","v":107000}]
[{"$nulls":6},"Nb delta 1000",{"$f":"H11/1000","v":108},{"$f":"I11/1000","v":107}]
[{"$nulls":6},"Nb images",{"$f":"H12*I12","v":11556}]
[{"$nulls":6},"à 13 Ko l'image",{"$f":"H13*13","v":{"v":150228,"d":"150Ko"}}]
[{"$nulls":6},"en Mo",{"$f":"H14*1000/POWER(10,6)","v":{"v":150.228,"d":"150Mo"}}]
[{"$nulls":7},"for coordX = Xmin to (Xmax-1000) step 1000","for coordY = Ymin to (Ymax-1000) step 1000"]

{"sheet":"Requêtes exemples","index":1,"n_rows":71,"n_cols":16,"rows_kept":71,"merged":[[27,14,27,15],[64,14,64,15]]}
["http://inventaire-forestier.ign.fr/cartov2/proxy/getTile?LAYERS=v58tf&TRANSPARENT=true&VISIBILITY=true&FORMAT=image%2FPNG&SERVICE=WMS&VERSION=1.1.1&REQUEST=GetMap&STYLES=&EXCEPTIONS=application%2Fvnd.ogc.se_inimage&SRS=EPSG%3A27572&BBOX=644889.7737606274,2281227.7697849646,649299.4936016009,2285637.4896259382&WIDTH=500&HEIGHT=500"]
["http://inventaire-forestier.ign.fr/cartov2/proxy/getTile?LAYERS=v58tf&TRANSPARENT=true&VISIBILITY=true&FORMAT=image%2FPNG&SERVICE=WMS&VERSION=1.1.1&REQUEST=GetMap&STYLES=&EXCEPTIONS=application%2Fvnd.ogc.se_inimage&SRS=EPSG%3A27572&BBOX=640480.0539196539,2281227.7697849646,644889.7737606274,2285637.4896259382&WIDTH=500&HEIGHT=500"]
["http://inventaire-forestier.ign.fr/cartov2/proxy/getTile?LAYERS=v58tf&TRANSPARENT=true&VISIBILITY=true&FORMAT=image%2FPNG&SERVICE=WMS&VERSION=1.1.1&REQUEST=GetMap&STYLES=&EXCEPTIONS=application%2Fvnd.ogc.se_inimage&SRS=EPSG%3A27572&BBOX=636070.3340786804,2281227.7697849646,640480.0539196539,2285637.4896259382&WIDTH=500&HEIGHT=500"]
["http://inventaire-forestier.ign.fr/cartov2/proxy/getTile?LAYERS=v58tf&TRANSPARENT=true&VISIBILITY=true&FORMAT=image%2FPNG&SERVICE=WMS&VERSION=1.1.1&REQUEST=GetMap&STYLES=&EXCEPTIONS=application%2Fvnd.ogc.se_inimage&SRS=EPSG%3A27572&BBOX=640480.0539196539,2276818.049943991,644889.7737606274,2281227.7697849646&WIDTH=500&HEIGHT=500"]
["http://inventaire-forestier.ign.fr/cartov2/proxy/getTile?LAYERS=v58tf&TRANSPARENT=true&VISIBILITY=true&FORMAT=image%2FPNG&SERVICE=WMS&VERSION=1.1.1&REQUEST=GetMap&STYLES=&EXCEPTIONS=application%2Fvnd.ogc.se_inimage&SRS=EPSG%3A27572&BBOX=644889.7737606274,2276818.049943991,649299.4936016009,2281227.7697849646&WIDTH=500&HEIGHT=500"]
["http://inventaire-forestier.ign.fr/cartov2/proxy/getTile?LAYERS=v58tf&TRANSPARENT=true&VISIBILITY=true&FORMAT=image%2FPNG&SERVICE=WMS&VERSION=1.1.1&REQUEST=GetMap&STYLES=&EXCEPTIONS=application%2Fvnd.ogc.se_inimage&SRS=EPSG%3A27572&BBOX=649299.4936016009,2276818.049943991,653709.2134425744,2281227.7697849646&WIDTH=500&HEIGHT=500"]
["http://inventaire-forestier.ign.fr/cartov2/proxy/getTile?LAYERS=v58tf&TRANSPARENT=true&VISIBILITY=true&FORMAT=image%2FPNG&SERVICE=WMS&VERSION=1.1.1&REQUEST=GetMap&STYLES=&EXCEPTIONS=application%2Fvnd.ogc.se_inimage&SRS=EPSG%3A27572&BBOX=649299.4936016009,2281227.7697849646,653709.2134425744,2285637.4896259382&WIDTH=500&HEIGHT=500"]
{"$rows_empty":11}
["http://inventaire-forestier.ign.fr/cartov2/proxy/getTile?LAYERS=v58tf&TRANSPARENT=true&VISIBILITY=true&FORMAT=image%2FPNG&SERVICE=WMS&VERSION=1.1.1&REQUEST=GetMap&STYLES=&EXCEPTIONS=application%2Fvnd.ogc.se_inimage&SRS=EPSG%3A27572&BBOX="]
[{"$nulls":10},"X","Y","X","Y","Delta X","Delta Y"]
["644889.7737606274,2281227.7697849646,649299.4936016009,2285637.4896259382",{"$f":"SEARCH(\",\",$A21,1)","v":18},{"$f":"SEARCH(\",\",$A21,B21+1)","v":37},{"$f":"SEARCH(\",\",$A21,C21+1)","v":55},{"$f":"LEN(A21)","v":73},{"$f":"MID($A21,1,B21-1)","v":"644889.7737606274"},{"$f":"MID($A21,B21+1,C21-B21-1)","v":"2281227.7697849646"},{"$f":"MID($A21,C21+1,D21-C21-1)","v":"649299.4936016009"},{"$f":"MID($A21,D21+1,E21-D21)","v":"2285637.4896259382"},null,644889.773760627,2281227.76978496,649299.4936016,2285637.48962593,{"$f":"M21-K21","v":4409.719840973034},{"$f":"N21-L21","v":4409.71984096989}]
["640480.0539196539,2281227.7697849646,644889.7737606274,2285637.4896259382",{"$f":"SEARCH(\",\",$A22,1)","v":18},{"$f":"SEARCH(\",\",$A22,B22+1)","v":37},55,{"$f":"LEN(A22)","v":73},{"$f":"MID($A22,1,B22-1)","v":"640480.0539196539"},{"$f":"MID($A22,B22+1,C22-B22-1)","v":"2281227.7697849646"},"644889.7737606274",{"$f":"MID($A22,D22+1,E22-D22)","v":"2285637.4896259382"},null,640480.053919653,2281227.76978496,644889.773760627,2285637.48962593,{"$f":"M22-K22","v":4409.719840974081},4409.71984096989]
["636070.3340786804,2281227.7697849646,640480.0539196539,2285637.4896259382",18,37,55,73,"636070.3340786804","2281227.7697849646","640480.0539196539","2285637.4896259382",null,636070.33407868,2281227.76978496,640480.053919653,2285637.48962593,4409.719840972917,4409.71984096989]
["640480.0539196539,2276818.049943991,644889.7737606274,2281227.7697849646",18,36,54,72,"640480.0539196539","2276818.049943991","644889.7737606274","2281227.7697849646",null,640480.053919653,2276818.04994399,644889.773760627,2281227.76978496,4409.719840974081,4409.71984096989]
["644889.7737606274,2276818.049943991,649299.4936016009,2281227.7697849646",18,36,54,72,"644889.7737606274","2276818.049943991","649299.4936016009","2281227.7697849646",null,644889.773760627,2276818.04994399,649299.4936016,2281227.76978496,4409.719840973034,4409.71984096989]
["649299.4936016009,2276818.049943991,653709.2134425744,2281227.7697849646",18,36,54,72,"649299.4936016009","2276818.049943991","653709.2134425744","2281227.7697849646",null,649299.4936016,2276818.04994399,653709.213442574,2281227.76978496,4409.719840973965,4409.71984096989]
["649299.4936016009,2281227.7697849646,653709.2134425744,2285637.4896259382",18,37,55,73,"649299.4936016009","2281227.7697849646","653709.2134425744","2285637.4896259382",null,649299.4936016,2281227.76978496,653709.213442574,2285637.48962593,4409.719840973965,4409.71984096989]
[{"$nulls":14},"en mètres"]
["&WIDTH=500&HEIGHT=500"]
[]
[]
[]
["http://inventaire-forestier.ign.fr/cartov2/proxy/getTile?LAYERS=v58tf&TRANSPARENT=true&VISIBILITY=true&FORMAT=image%2FPNG&SERVICE=WMS&VERSION=1.1.1&REQUEST=GetMap&STYLES=&EXCEPTIONS=application%2Fvnd.ogc.se_inimage&SRS=EPSG%3A27572&BBOX=640480.0539196541,2281227.769784965,642243.9418560435,2282991.6577213546&WIDTH=500&HEIGHT=500"]
["http://inventaire-forestier.ign.fr/cartov2/proxy/getTile?LAYERS=v58tf&TRANSPARENT=true&VISIBILITY=true&FORMAT=image%2FPNG&SERVICE=WMS&VERSION=1.1.1&REQUEST=GetMap&STYLES=&EXCEPTIONS=application%2Fvnd.ogc.se_inimage&SRS=EPSG%3A27572&BBOX=638716.1659832647,2281227.769784965,640480.0539196541,2282991.6577213546&WIDTH=500&HEIGHT=500"]
["http://inventaire-forestier.ign.fr/cartov2/proxy/getTile?LAYERS=v58tf&TRANSPARENT=true&VISIBILITY=true&FORMAT=image%2FPNG&SERVICE=WMS&VERSION=1.1.1&REQUEST=GetMap&STYLES=&EXCEPTIONS=application%2Fvnd.ogc.se_inimage&SRS=EPSG%3A27572&BBOX=636952.2780468753,2281227.769784965,638716.1659832647,2282991.6577213546&WIDTH=500&HEIGHT=500"]
["http://inventaire-forestier.ign.fr/cartov2/proxy/getTile?LAYERS=v58tf&TRANSPARENT=true&VISIBILITY=true&FORMAT=image%2FPNG&SERVICE=WMS&VERSION=1.1.1&REQUEST=GetMap&STYLES=&EXCEPTIONS=application%2Fvnd.ogc.se_inimage&SRS=EPSG%3A27572&BBOX=635188.3901104858,2281227.769784965,636952.2780468753,2282991.6577213546&WIDTH=500&HEIGHT=500"]
["http://inventaire-forestier.ign.fr/cartov2/proxy/getTile?LAYERS=v58tf&TRANSPARENT=true&VISIBILITY=true&FORMAT=image%2FPNG&SERVICE=WMS&VERSION=1.1.1&REQUEST=GetMap&STYLES=&EXCEPTIONS=application%2Fvnd.ogc.se_inimage&SRS=EPSG%3A27572&BBOX=635188.3901104858,2279463.8818485755,636952.2780468753,2281227.769784965&WIDTH=500&HEIGHT=500"]
["http://inventaire-forestier.ign.fr/cartov2/proxy/getTile?LAYERS=v58tf&TRANSPARENT=true&VISIBILITY=true&FORMAT=image%2FPNG&SERVICE=WMS&VERSION=1.1.1&REQUEST=GetMap&STYLES=&EXCEPTIONS=application%2Fvnd.ogc.se_inimage&SRS=EPSG%3A27572&BBOX=638716.1659832647,2279463.8818485755,640480.0539196541,2281227.769784965&WIDTH=500&HEIGHT=500"]
["http://inventaire-forestier.ign.fr/cartov2/proxy/getTile?LAYERS=v58tf&TRANSPARENT=true&VISIBILITY=true&FORMAT=image%2FPNG&SERVICE=WMS&VERSION=1.1.1&REQUEST=GetMap&STYLES=&EXCEPTIONS=application%2Fvnd.ogc.se_inimage&SRS=EPSG%3A27572&BBOX=640480.0539196541,2279463.8818485755,642243.9418560435,2281227.769784965&WIDTH=500&HEIGHT=500"]
["http://inventaire-forestier.ign.fr/cartov2/proxy/getTile?LAYERS=v58tf&TRANSPARENT=true&VISIBILITY=true&FORMAT=image%2FPNG&SERVICE=WMS&VERSION=1.1.1&REQUEST=GetMap&STYLES=&EXCEPTIONS=application%2Fvnd.ogc.se_inimage&SRS=EPSG%3A27572&BBOX=642243.9418560435,2279463.8818485755,644007.829792433,2281227.769784965&WIDTH=500&HEIGHT=500"]
["http://inventaire-forestier.ign.fr/cartov2/proxy/getTile?LAYERS=v58tf&TRANSPARENT=true&VISIBILITY=true&FORMAT=image%2FPNG&SERVICE=WMS&VERSION=1.1.1&REQUEST=GetMap&STYLES=&EXCEPTIONS=application%2Fvnd.ogc.se_inimage&SRS=EPSG%3A27572&BBOX=642243.9418560435,2281227.769784965,644007.829792433,2282991.6577213546&WIDTH=500&HEIGHT=500"]
["http://inventaire-forestier.ign.fr/cartov2/proxy/getTile?LAYERS=v58tf&TRANSPARENT=true&VISIBILITY=true&FORMAT=image%2FPNG&SERVICE=WMS&VERSION=1.1.1&REQUEST=GetMap&STYLES=&EXCEPTIONS=application%2Fvnd.ogc.se_inimage&SRS=EPSG%3A27572&BBOX=642243.9418560435,2282991.6577213546,644007.829792433,2284755.545657744&WIDTH=500&HEIGHT=500"]
["http://inventaire-forestier.ign.fr/cartov2/proxy/getTile?LAYERS=v58tf&TRANSPARENT=true&VISIBILITY=true&FORMAT=image%2FPNG&SERVICE=WMS&VERSION=1.1.1&REQUEST=GetMap&STYLES=&EXCEPTIONS=application%2Fvnd.ogc.se_inimage&SRS=EPSG%3A27572&BBOX=640480.0539196541,2282991.6577213546,642243.9418560435,2284755.545657744&WIDTH=500&HEIGHT=500"]
["http://inventaire-forestier.ign.fr/cartov2/proxy/getTile?LAYERS=v58tf&TRANSPARENT=true&VISIBILITY=true&FORMAT=image%2FPNG&SERVICE=WMS&VERSION=1.1.1&REQUEST=GetMap&STYLES=&EXCEPTIONS=application%2Fvnd.ogc.se_inimage&SRS=EPSG%3A27572&BBOX=638716.1659832647,2282991.6577213546,640480.0539196541,2284755.545657744&WIDTH=500&HEIGHT=500"]
["http://inventaire-forestier.ign.fr/cartov2/proxy/getTile?LAYERS=v58tf&TRANSPARENT=true&VISIBILITY=true&FORMAT=image%2FPNG&SERVICE=WMS&VERSION=1.1.1&REQUEST=GetMap&STYLES=&EXCEPTIONS=application%2Fvnd.ogc.se_inimage&SRS=EPSG%3A27572&BBOX=636952.2780468753,2282991.6577213546,638716.1659832647,2284755.545657744&WIDTH=500&HEIGHT=500"]
["http://inventaire-forestier.ign.fr/cartov2/proxy/getTile?LAYERS=v58tf&TRANSPARENT=true&VISIBILITY=true&FORMAT=image%2FPNG&SERVICE=WMS&VERSION=1.1.1&REQUEST=GetMap&STYLES=&EXCEPTIONS=application%2Fvnd.ogc.se_inimage&SRS=EPSG%3A27572&BBOX=635188.3901104858,2282991.6577213546,636952.2780468753,2284755.545657744&WIDTH=500&HEIGHT=500"]
[]
[]
["http://inventaire-forestier.ign.fr/cartov2/proxy/getTile?LAYERS=v58tf&TRANSPARENT=true&VISIBILITY=true&FORMAT=image%2FPNG&SERVICE=WMS&VERSION=1.1.1&REQUEST=GetMap&STYLES=&EXCEPTIONS=application%2Fvnd.ogc.se_inimage&SRS=EPSG%3A27572&BBOX="]
[{"$nulls":10},"X","Y","X","Y","Delta X","Delta Y"]
["640480.0539196541,2281227.769784965,642243.9418560435,2282991.6577213546",{"$f":"SEARCH(\",\",$A51,1)","v":18},{"$f":"SEARCH(\",\",$A51,B51+1)","v":36},{"$f":"SEARCH(\",\",$A51,C51+1)","v":54},{"$f":"LEN(A51)","v":72},{"$f":"MID($A51,1,B51-1)","v":"640480.0539196541"},{"$f":"MID($A51,B51+1,C51-B51-1)","v":"2281227.769784965"},{"$f":"MID($A51,C51+1,D51-C51-1)","v":"642243.9418560435"},{"$f":"MID($A51,D51+1,E51-D51)","v":"2282991.6577213546"},null,640480.053919654,2281227.76978496,642243.941856043,2282991.65772135,{"$f":"M51-K51","v":1763.8879363889573},{"$f":"N51-L51","v":1763.887936390005}]
["638716.1659832647,2281227.769784965,640480.0539196541,2282991.6577213546",{"$f":"SEARCH(\",\",$A52,1)","v":18},{"$f":"SEARCH(\",\",$A52,B52+1)","v":36},54,{"$f":"LEN(A52)","v":72},{"$f":"MID($A52,1,B52-1)","v":"638716.1659832647"},{"$f":"MID($A52,B52+1,C52-B52-1)","v":"2281227.769784965"},"640480.0539196541",{"$f":"MID($A52,D52+1,E52-D52)","v":"2282991.6577213546"},null,638716.165983264,2281227.76978496,640480.053919654,2282991.65772135,{"$f":"M52-K52","v":1763.887936390005},1763.887936390005]
["636952.2780468753,2281227.769784965,638716.1659832647,2282991.6577213546",18,36,54,72,"636952.2780468753","2281227.769784965","638716.1659832647","2282991.6577213546",null,636952.278046875,2281227.76978496,638716.165983264,2282991.65772135,1763.8879363889573,1763.887936390005]
["635188.3901104858,2281227.769784965,636952.2780468753,2282991.6577213546",18,36,54,72,"635188.3901104858","2281227.769784965","636952.2780468753","2282991.6577213546",null,635188.390110485,2281227.76978496,636952.278046875,2282991.65772135,1763.887936390005,1763.887936390005]
["635188.3901104858,2279463.8818485755,636952.2780468753,2281227.769784965",18,37,55,72,"635188.3901104858","2279463.8818485755","636952.2780468753","2281227.769784965",null,635188.390110485,2279463.88184857,636952.278046875,2281227.76978496,1763.887936390005,1763.887936390005]
["638716.1659832647,2279463.8818485755,640480.0539196541,2281227.769784965",18,37,55,72,"638716.1659832647","2279463.8818485755","640480.0539196541","2281227.769784965",null,638716.165983264,2279463.88184857,640480.053919654,2281227.76978496,1763.887936390005,1763.887936390005]
["640480.0539196541,2279463.8818485755,642243.9418560435,2281227.769784965",18,37,55,72,"640480.0539196541","2279463.8818485755","642243.9418560435","2281227.769784965",null,640480.053919654,2279463.88184857,642243.941856043,2281227.76978496,1763.8879363889573,1763.887936390005]
["642243.9418560435,2279463.8818485755,644007.829792433,2281227.769784965",18,37,54,71,"642243.9418560435","2279463.8818485755","644007.829792433","2281227.769784965",null,642243.941856043,2279463.88184857,644007.829792433,2281227.76978496,1763.887936390005,1763.887936390005]
["642243.9418560435,2281227.769784965,644007.829792433,2282991.6577213546",18,36,53,71,"642243.9418560435","2281227.769784965","644007.829792433","2282991.6577213546",null,642243.941856043,2281227.76978496,644007.829792433,2282991.65772135,1763.887936390005,1763.887936390005]
["642243.9418560435,2282991.6577213546,644007.829792433,2284755.545657744",18,37,54,71,"642243.9418560435","2282991.6577213546","644007.829792433","2284755.545657744",null,642243.941856043,2282991.65772135,644007.829792433,2284755.54565774,1763.887936390005,1763.887936390005]
["640480.0539196541,2282991.6577213546,642243.9418560435,2284755.545657744",18,37,55,72,"640480.0539196541","2282991.6577213546","642243.9418560435","2284755.545657744",null,640480.053919654,2282991.65772135,642243.941856043,2284755.54565774,1763.8879363889573,1763.887936390005]
["638716.1659832647,2282991.6577213546,640480.0539196541,2284755.545657744",18,37,55,72,"638716.1659832647","2282991.6577213546","640480.0539196541","2284755.545657744",null,638716.165983264,2282991.65772135,640480.053919654,2284755.54565774,1763.887936390005,1763.887936390005]
["636952.2780468753,2282991.6577213546,638716.1659832647,2284755.545657744",18,37,55,72,"636952.2780468753","2282991.6577213546","638716.1659832647","2284755.545657744",null,636952.278046875,2282991.65772135,638716.165983264,2284755.54565774,1763.8879363889573,1763.887936390005]
["635188.3901104858,2282991.6577213546,636952.2780468753,2284755.545657744",18,37,55,72,"635188.3901104858","2282991.6577213546","636952.2780468753",{"$f":"MID($A64,D64+1,E64-D64)","v":"2284755.545657744"},null,635188.390110485,2282991.65772135,636952.278046875,2284755.54565774,1763.887936390005,1763.887936390005]
[{"$nulls":14},"en mètres"]
["&WIDTH=500&HEIGHT=500"]
[{"$nulls":10},{"$f":"INT(K51)","v":640480},{"$f":"INT(L51)","v":2281227},{"$f":"K67+2000","v":642480},{"$f":"L67+2000","v":2283227}]
[{"$nulls":10},{"$f":"\",\"","v":","}]
[{"$nulls":10},{"$f":"CONCATENATE(K67,K68,L67,K68,M67,K68,N67)","v":"640480,2281227,642480,2283227"}]
[]
[{"$nulls":9},"http://inventaire-forestier.ign.fr/cartov2/proxy/getTile?LAYERS=v58tf&TRANSPARENT=true&VISIBILITY=true&FORMAT=image%2FPNG&SERVICE=WMS&VERSION=1.1.1&REQUEST=GetMap&STYLES=&EXCEPTIONS=application%2Fvnd.ogc.se_inimage&SRS=EPSG%3A27572&BBOX=","640480,2281227,642480,2283227","&WIDTH=1000&HEIGHT=1000",{"$f":"CONCATENATE(J71,K71,L71)","v":"http://inventaire-forestier.ign.fr/cartov2/proxy/getTile?LAYERS=v58tf&TRANSPARENT=true&VISIBILITY=true&FORMAT=image%2FPNG&SERVICE=WMS&VERSION=1.1.1&REQUEST=GetMap&STYLES=&EXCEPTIONS=application%2Fvnd.ogc.se_inimage&SRS=EPSG%3A27572&BBOX=640480,2281227,642480,2283227&WIDTH=1000&HEIGHT=1000"}]

{"sheet":"LOG","index":2,"n_rows":73,"n_cols":5,"rows_kept":73}
[]
["OpenLayers.Layer.WMS_2","OpenLayersDiv108png","DOWNLOADED","http://mapserv-3.ifn.fr/cgi-bin/tilecache?LAYERS=franceraster&TRANSPARENT=true&VISIBILITY=true&FORMAT=image%2FPNG&SERVICE=WMS&VERSION=1.1.1&REQUEST=GetMap&STYLES=&EXCEPTIONS=application%2Fvnd.ogc.se_inimage&SRS=EPSG%3A27572&BBOX=622841.17455576,2148936.17455576,711035.57137523,2237130.57137523&WIDTH=500&HEIGHT=500",0]
["OpenLayers.Layer.WMS_2","OpenLayersDiv111png","DOWNLOADED","http://mapserv-1.ifn.fr/cgi-bin/tilecache?LAYERS=franceraster&TRANSPARENT=true&VISIBILITY=true&FORMAT=image%2FPNG&SERVICE=WMS&VERSION=1.1.1&REQUEST=GetMap&STYLES=&EXCEPTIONS=application%2Fvnd.ogc.se_inimage&SRS=EPSG%3A27572&BBOX=711035.57137523,2148936.17455576,799229.9681947,2237130.57137523&WIDTH=500&HEIGHT=500",0]
["OpenLayers.Layer.WMS_2","OpenLayersDiv114png","DOWNLOADED","http://mapserv.ifn.fr/cgi-bin/tilecache?&SERVICE=WMS&VERSION=1.1.1&REQUEST=GetMap&LAYERS=franceraster&TRANSPARENT=true&VISIBILITY=true&FORMAT=image%2FPNG&STYLES=&EXCEPTIONS=application%2Fvnd.ogc.se_inimage&SRS=EPSG%3A27572&BBOX=799229.9681947,2148936.17455576,887424.36501417,2237130.57137523&WIDTH=500&HEIGHT=500",0]
["OpenLayers.Layer.WMS_2","OpenLayersDiv117png","DOWNLOADED","http://mapserv-1.ifn.fr/cgi-bin/tilecache?LAYERS=franceraster&TRANSPARENT=true&VISIBILITY=true&FORMAT=image%2FPNG&SERVICE=WMS&VERSION=1.1.1&REQUEST=GetMap&STYLES=&EXCEPTIONS=application%2Fvnd.ogc.se_inimage&SRS=EPSG%3A27572&BBOX=799229.9681947,2237130.57137523,887424.36501417,2325324.9681947&WIDTH=500&HEIGHT=500",0]
["OpenLayers.Layer.WMS_2","OpenLayersDiv120png","DOWNLOADED","http://mapserv-5.ifn.fr/cgi-bin/tilecache?LAYERS=franceraster&TRANSPARENT=true&VISIBILITY=true&FORMAT=image%2FPNG&SERVICE=WMS&VERSION=1.1.1&REQUEST=GetMap&STYLES=&EXCEPTIONS=application%2Fvnd.ogc.se_inimage&SRS=EPSG%3A27572&BBOX=711035.57137523,2237130.57137523,799229.9681947,2325324.9681947&WIDTH=500&HEIGHT=500",0]
["OpenLayers.Layer.WMS_2","OpenLayersDiv123png","DOWNLOADED","http://mapserv-6.ifn.fr/cgi-bin/tilecache?LAYERS=franceraster&TRANSPARENT=true&VISIBILITY=true&FORMAT=image%2FPNG&SERVICE=WMS&VERSION=1.1.1&REQUEST=GetMap&STYLES=&EXCEPTIONS=application%2Fvnd.ogc.se_inimage&SRS=EPSG%3A27572&BBOX=622841.17455576,2237130.57137523,711035.57137523,2325324.9681947&WIDTH=500&HEIGHT=500",0]
["OpenLayers.Layer.WMS_2","OpenLayersDiv126png","DOWNLOADED","http://mapserv-4.ifn.fr/cgi-bin/tilecache?LAYERS=franceraster&TRANSPARENT=true&VISIBILITY=true&FORMAT=image%2FPNG&SERVICE=WMS&VERSION=1.1.1&REQUEST=GetMap&STYLES=&EXCEPTIONS=application%2Fvnd.ogc.se_inimage&SRS=EPSG%3A27572&BBOX=534646.77773629,2237130.57137523,622841.17455576,2325324.9681947&WIDTH=500&HEIGHT=500",0]
["OpenLayers.Layer.WMS_2","OpenLayersDiv129png","DOWNLOADED","http://mapserv-6.ifn.fr/cgi-bin/tilecache?LAYERS=franceraster&TRANSPARENT=true&VISIBILITY=true&FORMAT=image%2FPNG&SERVICE=WMS&VERSION=1.1.1&REQUEST=GetMap&STYLES=&EXCEPTIONS=application%2Fvnd.ogc.se_inimage&SRS=EPSG%3A27572&BBOX=534646.77773629,2148936.17455576,622841.17455576,2237130.57137523&WIDTH=500&HEIGHT=500",0]
["OpenLayers.Layer.WMS_2","OpenLayersDiv132png","DOWNLOADED","http://mapserv-1.ifn.fr/cgi-bin/tilecache?LAYERS=franceraster&TRANSPARENT=true&VISIBILITY=true&FORMAT=image%2FPNG&SERVICE=WMS&VERSION=1.1.1&REQUEST=GetMap&STYLES=&EXCEPTIONS=application%2Fvnd.ogc.se_inimage&SRS=EPSG%3A27572&BBOX=534646.77773629,2060741.77773629,622841.17455576,2148936.17455576&WIDTH=500&HEIGHT=500",0]
["OpenLayers.Layer.WMS_2","OpenLayersDiv135png","DOWNLOADED","http://mapserv-4.ifn.fr/cgi-bin/tilecache?LAYERS=franceraster&TRANSPARENT=true&VISIBILITY=true&FORMAT=image%2FPNG&SERVICE=WMS&VERSION=1.1.1&REQUEST=GetMap&STYLES=&EXCEPTIONS=application%2Fvnd.ogc.se_inimage&SRS=EPSG%3A27572&BBOX=622841.17455576,2060741.77773629,711035.57137523,2148936.17455576&WIDTH=500&HEIGHT=500",0]
["OpenLayers.Layer.WMS_2","OpenLayersDiv138png","DOWNLOADED","http://mapserv-5.ifn.fr/cgi-bin/tilecache?LAYERS=franceraster&TRANSPARENT=true&VISIBILITY=true&FORMAT=image%2FPNG&SERVICE=WMS&VERSION=1.1.1&REQUEST=GetMap&STYLES=&EXCEPTIONS=application%2Fvnd.ogc.se_inimage&SRS=EPSG%3A27572&BBOX=711035.57137523,2060741.77773629,799229.9681947,2148936.17455576&WIDTH=500&HEIGHT=500",0]
["OpenLayers.Layer.WMS_2","OpenLayersDiv141png","DOWNLOADED","http://mapserv-2.ifn.fr/cgi-bin/tilecache?LAYERS=franceraster&TRANSPARENT=true&VISIBILITY=true&FORMAT=image%2FPNG&SERVICE=WMS&VERSION=1.1.1&REQUEST=GetMap&STYLES=&EXCEPTIONS=application%2Fvnd.ogc.se_inimage&SRS=EPSG%3A27572&BBOX=799229.9681947,2060741.77773629,887424.36501417,2148936.17455576&WIDTH=500&HEIGHT=500",0]
["OpenLayers.Layer.WMS_2","OpenLayersDiv144png","DOWNLOADED","http://mapserv-1.ifn.fr/cgi-bin/tilecache?LAYERS=franceraster&TRANSPARENT=true&VISIBILITY=true&FORMAT=image%2FPNG&SERVICE=WMS&VERSION=1.1.1&REQUEST=GetMap&STYLES=&EXCEPTIONS=application%2Fvnd.ogc.se_inimage&SRS=EPSG%3A27572&BBOX=887424.36501417,2060741.77773629,975618.7618336399,2148936.17455576&WIDTH=500&HEIGHT=500",0]
["OpenLayers.Layer.WMS_2","OpenLayersDiv147png","DOWNLOADED","http://mapserv-3.ifn.fr/cgi-bin/tilecache?LAYERS=franceraster&TRANSPARENT=true&VISIBILITY=true&FORMAT=image%2FPNG&SERVICE=WMS&VERSION=1.1.1&REQUEST=GetMap&STYLES=&EXCEPTIONS=application%2Fvnd.ogc.se_inimage&SRS=EPSG%3A27572&BBOX=887424.36501417,2148936.17455576,975618.7618336399,2237130.57137523&WIDTH=500&HEIGHT=500",0]
["OpenLayers.Layer.WMS_2","OpenLayersDiv150png","DOWNLOADED","http://mapserv-4.ifn.fr/cgi-bin/tilecache?LAYERS=franceraster&TRANSPARENT=true&VISIBILITY=true&FORMAT=image%2FPNG&SERVICE=WMS&VERSION=1.1.1&REQUEST=GetMap&STYLES=&EXCEPTIONS=application%2Fvnd.ogc.se_inimage&SRS=EPSG%3A27572&BBOX=887424.36501417,2237130.57137523,975618.7618336399,2325324.9681947&WIDTH=500&HEIGHT=500",0]
["OpenLayers.Layer.WMS_2","OpenLayersDiv153png","DOWNLOADED","http://mapserv-3.ifn.fr/cgi-bin/tilecache?LAYERS=franceraster&TRANSPARENT=true&VISIBILITY=true&FORMAT=image%2FPNG&SERVICE=WMS&VERSION=1.1.1&REQUEST=GetMap&STYLES=&EXCEPTIONS=application%2Fvnd.ogc.se_inimage&SRS=EPSG%3A27572&BBOX=887424.36501417,2325324.9681947,975618.7618336399,2413519.36501417&WIDTH=500&HEIGHT=500",0]
["OpenLayers.Layer.WMS_2","OpenLayersDiv156png","DOWNLOADED","http://mapserv-2.ifn.fr/cgi-bin/tilecache?LAYERS=franceraster&TRANSPARENT=true&VISIBILITY=true&FORMAT=image%2FPNG&SERVICE=WMS&VERSION=1.1.1&REQUEST=GetMap&STYLES=&EXCEPTIONS=application%2Fvnd.ogc.se_inimage&SRS=EPSG%3A27572&BBOX=799229.9681947,2325324.9681947,887424.36501417,2413519.36501417&WIDTH=500&HEIGHT=500",0]
["OpenLayers.Layer.WMS_2","OpenLayersDiv159png","DOWNLOADED","http://mapserv-8.ifn.fr/cgi-bin/tilecache?LAYERS=franceraster&TRANSPARENT=true&VISIBILITY=true&FORMAT=image%2FPNG&SERVICE=WMS&VERSION=1.1.1&REQUEST=GetMap&STYLES=&EXCEPTIONS=application%2Fvnd.ogc.se_inimage&SRS=EPSG%3A27572&BBOX=711035.57137523,2325324.9681947,799229.9681947,2413519.36501417&WIDTH=500&HEIGHT=500",0]
["OpenLayers.Layer.WMS_2","OpenLayersDiv162png","DOWNLOADED","http://mapserv-1.ifn.fr/cgi-bin/tilecache?LAYERS=franceraster&TRANSPARENT=true&VISIBILITY=true&FORMAT=image%2FPNG&SERVICE=WMS&VERSION=1.1.1&REQUEST=GetMap&STYLES=&EXCEPTIONS=application%2Fvnd.ogc.se_inimage&SRS=EPSG%3A27572&BBOX=622841.17455576,2325324.9681947,711035.57137523,2413519.36501417&WIDTH=500&HEIGHT=500",0]
["OpenLayers.Layer.WMS_2","OpenLayersDiv165png","DOWNLOADED","http://mapserv-7.ifn.fr/cgi-bin/tilecache?LAYERS=franceraster&TRANSPARENT=true&VISIBILITY=true&FORMAT=image%2FPNG&SERVICE=WMS&VERSION=1.1.1&REQUEST=GetMap&STYLES=&EXCEPTIONS=application%2Fvnd.ogc.se_inimage&SRS=EPSG%3A27572&BBOX=534646.77773629,2325324.9681947,622841.17455576,2413519.36501417&WIDTH=500&HEIGHT=500",0]
["OpenLayers.Layer.WMS_2","OpenLayersDiv310png","DOWNLOADED","http://mapserv-3.ifn.fr/cgi-bin/tilecache?LAYERS=franceraster&TRANSPARENT=true&VISIBILITY=true&FORMAT=image%2FPNG&SERVICE=WMS&VERSION=1.1.1&REQUEST=GetMap&STYLES=&EXCEPTIONS=application%2Fvnd.ogc.se_inimage&SRS=EPSG%3A27572&BBOX=622841.17455576,2148936.17455576,711035.57137523,2237130.57137523&WIDTH=500&HEIGHT=500",0]
["OpenLayers.Layer.WMS_2","OpenLayersDiv312png","DOWNLOADED","http://mapserv-1.ifn.fr/cgi-bin/tilecache?LAYERS=franceraster&TRANSPARENT=true&VISIBILITY=true&FORMAT=image%2FPNG&SERVICE=WMS&VERSION=1.1.1&REQUEST=GetMap&STYLES=&EXCEPTIONS=application%2Fvnd.ogc.se_inimage&SRS=EPSG%3A27572&BBOX=711035.57137523,2148936.17455576,799229.9681947,2237130.57137523&WIDTH=500&HEIGHT=500",0]
["OpenLayers.Layer.WMS_2","OpenLayersDiv314png","DOWNLOADED","http://mapserv.ifn.fr/cgi-bin/tilecache?&SERVICE=WMS&VERSION=1.1.1&REQUEST=GetMap&LAYERS=franceraster&TRANSPARENT=true&VISIBILITY=true&FORMAT=image%2FPNG&STYLES=&EXCEPTIONS=application%2Fvnd.ogc.se_inimage&SRS=EPSG%3A27572&BBOX=799229.9681947,2148936.17455576,887424.36501417,2237130.57137523&WIDTH=500&HEIGHT=500",0]
["OpenLayers.Layer.WMS_2","OpenLayersDiv316png","DOWNLOADED","http://mapserv-1.ifn.fr/cgi-bin/tilecache?LAYERS=franceraster&TRANSPARENT=true&VISIBILITY=true&FORMAT=image%2FPNG&SERVICE=WMS&VERSION=1.1.1&REQUEST=GetMap&STYLES=&EXCEPTIONS=application%2Fvnd.ogc.se_inimage&SRS=EPSG%3A27572&BBOX=799229.9681947,2237130.57137523,887424.36501417,2325324.9681947&WIDTH=500&HEIGHT=500",0]
["OpenLayers.Layer.WMS_2","OpenLayersDiv318png","DOWNLOADED","http://mapserv-5.ifn.fr/cgi-bin/tilecache?LAYERS=franceraster&TRANSPARENT=true&VISIBILITY=true&FORMAT=image%2FPNG&SERVICE=WMS&VERSION=1.1.1&REQUEST=GetMap&STYLES=&EXCEPTIONS=application%2Fvnd.ogc.se_inimage&SRS=EPSG%3A27572&BBOX=711035.57137523,2237130.57137523,799229.9681947,2325324.9681947&WIDTH=500&HEIGHT=500",0]
["OpenLayers.Layer.WMS_2","OpenLayersDiv320png","DOWNLOADED","http://mapserv-6.ifn.fr/cgi-bin/tilecache?LAYERS=franceraster&TRANSPARENT=true&VISIBILITY=true&FORMAT=image%2FPNG&SERVICE=WMS&VERSION=1.1.1&REQUEST=GetMap&STYLES=&EXCEPTIONS=application%2Fvnd.ogc.se_inimage&SRS=EPSG%3A27572&BBOX=622841.17455576,2237130.57137523,711035.57137523,2325324.9681947&WIDTH=500&HEIGHT=500",0]
["OpenLayers.Layer.WMS_2","OpenLayersDiv322png","DOWNLOADED","http://mapserv-4.ifn.fr/cgi-bin/tilecache?LAYERS=franceraster&TRANSPARENT=true&VISIBILITY=true&FORMAT=image%2FPNG&SERVICE=WMS&VERSION=1.1.1&REQUEST=GetMap&STYLES=&EXCEPTIONS=application%2Fvnd.ogc.se_inimage&SRS=EPSG%3A27572&BBOX=534646.77773629,2237130.57137523,622841.17455576,2325324.9681947&WIDTH=500&HEIGHT=500",0]
[]
[]
[]
["OpenLayers.Layer.WMS_10","OpenLayersDiv247png","DOWNLOADED","http://mapserv-4.ifn.fr/cgi-bin/tilecache?LAYERS=departements&TRANSPARENT=true&VISIBILITY=true&FORMAT=image%2FPNG&SERVICE=WMS&VERSION=1.1.1&REQUEST=GetMap&STYLES=&EXCEPTIONS=application%2Fvnd.ogc.se_inimage&SRS=EPSG%3A27572&BBOX=622841.17455576,2148936.17455576,711035.57137523,2237130.57137523&WIDTH=500&HEIGHT=500",0]
["OpenLayers.Layer.WMS_10","OpenLayersDiv249png","DOWNLOADED","http://mapserv-5.ifn.fr/cgi-bin/tilecache?LAYERS=departements&TRANSPARENT=true&VISIBILITY=true&FORMAT=image%2FPNG&SERVICE=WMS&VERSION=1.1.1&REQUEST=GetMap&STYLES=&EXCEPTIONS=application%2Fvnd.ogc.se_inimage&SRS=EPSG%3A27572&BBOX=711035.57137523,2148936.17455576,799229.9681947,2237130.57137523&WIDTH=500&HEIGHT=500",0]
["OpenLayers.Layer.WMS_10","OpenLayersDiv251png","DOWNLOADED","http://mapserv-8.ifn.fr/cgi-bin/tilecache?LAYERS=departements&TRANSPARENT=true&VISIBILITY=true&FORMAT=image%2FPNG&SERVICE=WMS&VERSION=1.1.1&REQUEST=GetMap&STYLES=&EXCEPTIONS=application%2Fvnd.ogc.se_inimage&SRS=EPSG%3A27572&BBOX=799229.9681947,2148936.17455576,887424.36501417,2237130.57137523&WIDTH=500&HEIGHT=500",0]
["OpenLayers.Layer.WMS_10","OpenLayersDiv253png","DOWNLOADED","http://mapserv-7.ifn.fr/cgi-bin/tilecache?LAYERS=departements&TRANSPARENT=true&VISIBILITY=true&FORMAT=image%2FPNG&SERVICE=WMS&VERSION=1.1.1&REQUEST=GetMap&STYLES=&EXCEPTIONS=application%2Fvnd.ogc.se_inimage&SRS=EPSG%3A27572&BBOX=799229.9681947,2237130.57137523,887424.36501417,2325324.9681947&WIDTH=500&HEIGHT=500",0]
["OpenLayers.Layer.WMS_10","OpenLayersDiv255png","DOWNLOADED","http://mapserv-5.ifn.fr/cgi-bin/tilecache?LAYERS=departements&TRANSPARENT=true&VISIBILITY=true&FORMAT=image%2FPNG&SERVICE=WMS&VERSION=1.1.1&REQUEST=GetMap&STYLES=&EXCEPTIONS=application%2Fvnd.ogc.se_inimage&SRS=EPSG%3A27572&BBOX=711035.57137523,2237130.57137523,799229.9681947,2325324.9681947&WIDTH=500&HEIGHT=500",0]
["OpenLayers.Layer.WMS_10","OpenLayersDiv257png","DOWNLOADED","http://mapserv-3.ifn.fr/cgi-bin/tilecache?LAYERS=departements&TRANSPARENT=true&VISIBILITY=true&FORMAT=image%2FPNG&SERVICE=WMS&VERSION=1.1.1&REQUEST=GetMap&STYLES=&EXCEPTIONS=application%2Fvnd.ogc.se_inimage&SRS=EPSG%3A27572&BBOX=622841.17455576,2237130.57137523,711035.57137523,2325324.9681947&WIDTH=500&HEIGHT=500",0]
["OpenLayers.Layer.WMS_10","OpenLayersDiv259png","DOWNLOADED","http://mapserv-5.ifn.fr/cgi-bin/tilecache?LAYERS=departements&TRANSPARENT=true&VISIBILITY=true&FORMAT=image%2FPNG&SERVICE=WMS&VERSION=1.1.1&REQUEST=GetMap&STYLES=&EXCEPTIONS=application%2Fvnd.ogc.se_inimage&SRS=EPSG%3A27572&BBOX=534646.77773629,2237130.57137523,622841.17455576,2325324.9681947&WIDTH=500&HEIGHT=500",0]
["OpenLayers.Layer.WMS_10","OpenLayersDiv261png","DOWNLOADED","http://mapserv-6.ifn.fr/cgi-bin/tilecache?LAYERS=departements&TRANSPARENT=true&VISIBILITY=true&FORMAT=image%2FPNG&SERVICE=WMS&VERSION=1.1.1&REQUEST=GetMap&STYLES=&EXCEPTIONS=application%2Fvnd.ogc.se_inimage&SRS=EPSG%3A27572&BBOX=534646.77773629,2148936.17455576,622841.17455576,2237130.57137523&WIDTH=500&HEIGHT=500",0]
["OpenLayers.Layer.WMS_10","OpenLayersDiv263png","DOWNLOADED","http://mapserv-3.ifn.fr/cgi-bin/tilecache?LAYERS=departements&TRANSPARENT=true&VISIBILITY=true&FORMAT=image%2FPNG&SERVICE=WMS&VERSION=1.1.1&REQUEST=GetMap&STYLES=&EXCEPTIONS=application%2Fvnd.ogc.se_inimage&SRS=EPSG%3A27572&BBOX=534646.77773629,2060741.77773629,622841.17455576,2148936.17455576&WIDTH=500&HEIGHT=500",0]
["OpenLayers.Layer.WMS_10","OpenLayersDiv265png","DOWNLOADED","http://mapserv-3.ifn.fr/cgi-bin/tilecache?LAYERS=departements&TRANSPARENT=true&VISIBILITY=true&FORMAT=image%2FPNG&SERVICE=WMS&VERSION=1.1.1&REQUEST=GetMap&STYLES=&EXCEPTIONS=application%2Fvnd.ogc.se_inimage&SRS=EPSG%3A27572&BBOX=622841.17455576,2060741.77773629,711035.57137523,2148936.17455576&WIDTH=500&HEIGHT=500",0]
["OpenLayers.Layer.WMS_10","OpenLayersDiv267png","DOWNLOADED","http://mapserv.ifn.fr/cgi-bin/tilecache?&SERVICE=WMS&VERSION=1.1.1&REQUEST=GetMap&LAYERS=departements&TRANSPARENT=true&VISIBILITY=true&FORMAT=image%2FPNG&STYLES=&EXCEPTIONS=application%2Fvnd.ogc.se_inimage&SRS=EPSG%3A27572&BBOX=711035.57137523,2060741.77773629,799229.9681947,2148936.17455576&WIDTH=500&HEIGHT=500",0]
["OpenLayers.Layer.WMS_10","OpenLayersDiv269png","DOWNLOADED","http://mapserv-6.ifn.fr/cgi-bin/tilecache?LAYERS=departements&TRANSPARENT=true&VISIBILITY=true&FORMAT=image%2FPNG&SERVICE=WMS&VERSION=1.1.1&REQUEST=GetMap&STYLES=&EXCEPTIONS=application%2Fvnd.ogc.se_inimage&SRS=EPSG%3A27572&BBOX=799229.9681947,2060741.77773629,887424.36501417,2148936.17455576&WIDTH=500&HEIGHT=500",0]
["OpenLayers.Layer.WMS_10","OpenLayersDiv271png","DOWNLOADED","http://mapserv-6.ifn.fr/cgi-bin/tilecache?LAYERS=departements&TRANSPARENT=true&VISIBILITY=true&FORMAT=image%2FPNG&SERVICE=WMS&VERSION=1.1.1&REQUEST=GetMap&STYLES=&EXCEPTIONS=application%2Fvnd.ogc.se_inimage&SRS=EPSG%3A27572&BBOX=887424.36501417,2060741.77773629,975618.7618336399,2148936.17455576&WIDTH=500&HEIGHT=500",0]
["OpenLayers.Layer.WMS_10","OpenLayersDiv273png","DOWNLOADED","http://mapserv-8.ifn.fr/cgi-bin/tilecache?LAYERS=departements&TRANSPARENT=true&VISIBILITY=true&FORMAT=image%2FPNG&SERVICE=WMS&VERSION=1.1.1&REQUEST=GetMap&STYLES=&EXCEPTIONS=application%2Fvnd.ogc.se_inimage&SRS=EPSG%3A27572&BBOX=887424.36501417,2148936.17455576,975618.7618336399,2237130.57137523&WIDTH=500&HEIGHT=500",0]
["OpenLayers.Layer.WMS_10","OpenLayersDiv275png","DOWNLOADED","http://mapserv-7.ifn.fr/cgi-bin/tilecache?LAYERS=departements&TRANSPARENT=true&VISIBILITY=true&FORMAT=image%2FPNG&SERVICE=WMS&VERSION=1.1.1&REQUEST=GetMap&STYLES=&EXCEPTIONS=application%2Fvnd.ogc.se_inimage&SRS=EPSG%3A27572&BBOX=887424.36501417,2237130.57137523,975618.7618336399,2325324.9681947&WIDTH=500&HEIGHT=500",0]
["OpenLayers.Layer.WMS_10","OpenLayersDiv277png","DOWNLOADED","http://mapserv-4.ifn.fr/cgi-bin/tilecache?LAYERS=departements&TRANSPARENT=true&VISIBILITY=true&FORMAT=image%2FPNG&SERVICE=WMS&VERSION=1.1.1&REQUEST=GetMap&STYLES=&EXCEPTIONS=application%2Fvnd.ogc.se_inimage&SRS=EPSG%3A27572&BBOX=887424.36501417,2325324.9681947,975618.7618336399,2413519.36501417&WIDTH=500&HEIGHT=500",0]
["OpenLayers.Layer.WMS_10","OpenLayersDiv279png","DOWNLOADED","http://mapserv-4.ifn.fr/cgi-bin/tilecache?LAYERS=departements&TRANSPARENT=true&VISIBILITY=true&FORMAT=image%2FPNG&SERVICE=WMS&VERSION=1.1.1&REQUEST=GetMap&STYLES=&EXCEPTIONS=application%2Fvnd.ogc.se_inimage&SRS=EPSG%3A27572&BBOX=799229.9681947,2325324.9681947,887424.36501417,2413519.36501417&WIDTH=500&HEIGHT=500",0]
["OpenLayers.Layer.WMS_10","OpenLayersDiv281png","DOWNLOADED","http://mapserv-1.ifn.fr/cgi-bin/tilecache?LAYERS=departements&TRANSPARENT=true&VISIBILITY=true&FORMAT=image%2FPNG&SERVICE=WMS&VERSION=1.1.1&REQUEST=GetMap&STYLES=&EXCEPTIONS=application%2Fvnd.ogc.se_inimage&SRS=EPSG%3A27572&BBOX=711035.57137523,2325324.9681947,799229.9681947,2413519.36501417&WIDTH=500&HEIGHT=500",0]
["OpenLayers.Layer.WMS_10","OpenLayersDiv283png","DOWNLOADED","http://mapserv-7.ifn.fr/cgi-bin/tilecache?LAYERS=departements&TRANSPARENT=true&VISIBILITY=true&FORMAT=image%2FPNG&SERVICE=WMS&VERSION=1.1.1&REQUEST=GetMap&STYLES=&EXCEPTIONS=application%2Fvnd.ogc.se_inimage&SRS=EPSG%3A27572&BBOX=622841.17455576,2325324.9681947,711035.57137523,2413519.36501417&WIDTH=500&HEIGHT=500",0]
["OpenLayers.Layer.WMS_10","OpenLayersDiv285png","DOWNLOADED","http://mapserv-2.ifn.fr/cgi-bin/tilecache?LAYERS=departements&TRANSPARENT=true&VISIBILITY=true&FORMAT=image%2FPNG&SERVICE=WMS&VERSION=1.1.1&REQUEST=GetMap&STYLES=&EXCEPTIONS=application%2Fvnd.ogc.se_inimage&SRS=EPSG%3A27572&BBOX=534646.77773629,2325324.9681947,622841.17455576,2413519.36501417&WIDTH=500&HEIGHT=500",0]
[]
[]
["OpenLayers.Layer.WMS_6","OpenLayersDiv187png","FAIL","http://inventaire-forestier.ign.fr/cartov2/proxy/getTile?LAYERS=v58tf&TRANSPARENT=true&VISIBILITY=true&FORMAT=image%2FPNG&SERVICE=WMS&VERSION=1.1.1&REQUEST=GetMap&STYLES=&EXCEPTIONS=application%2Fvnd.ogc.se_inimage&SRS=EPSG%3A27572&BBOX=622841.17455576,2148936.17455576,711035.57137523,2237130.57137523&WIDTH=500&HEIGHT=500",-2146697210]
["OpenLayers.Layer.WMS_6","OpenLayersDiv189png","FAIL","http://inventaire-forestier.ign.fr/cartov2/proxy/getTile?LAYERS=v58tf&TRANSPARENT=true&VISIBILITY=true&FORMAT=image%2FPNG&SERVICE=WMS&VERSION=1.1.1&REQUEST=GetMap&STYLES=&EXCEPTIONS=application%2Fvnd.ogc.se_inimage&SRS=EPSG%3A27572&BBOX=711035.57137523,2148936.17455576,799229.9681947,2237130.57137523&WIDTH=500&HEIGHT=500",-2146697210]
["OpenLayers.Layer.WMS_6","OpenLayersDiv191png","FAIL","http://inventaire-forestier.ign.fr/cartov2/proxy/getTile?LAYERS=v58tf&TRANSPARENT=true&VISIBILITY=true&FORMAT=image%2FPNG&SERVICE=WMS&VERSION=1.1.1&REQUEST=GetMap&STYLES=&EXCEPTIONS=application%2Fvnd.ogc.se_inimage&SRS=EPSG%3A27572&BBOX=799229.9681947,2148936.17455576,887424.36501417,2237130.57137523&WIDTH=500&HEIGHT=500",-2146697210]
["OpenLayers.Layer.WMS_6","OpenLayersDiv193png","FAIL","http://inventaire-forestier.ign.fr/cartov2/proxy/getTile?LAYERS=v58tf&TRANSPARENT=true&VISIBILITY=true&FORMAT=image%2FPNG&SERVICE=WMS&VERSION=1.1.1&REQUEST=GetMap&STYLES=&EXCEPTIONS=application%2Fvnd.ogc.se_inimage&SRS=EPSG%3A27572&BBOX=799229.9681947,2237130.57137523,887424.36501417,2325324.9681947&WIDTH=500&HEIGHT=500",-2146697210]
["OpenLayers.Layer.WMS_6","OpenLayersDiv195png","FAIL","http://inventaire-forestier.ign.fr/cartov2/proxy/getTile?LAYERS=v58tf&TRANSPARENT=true&VISIBILITY=true&FORMAT=image%2FPNG&SERVICE=WMS&VERSION=1.1.1&REQUEST=GetMap&STYLES=&EXCEPTIONS=application%2Fvnd.ogc.se_inimage&SRS=EPSG%3A27572&BBOX=711035.57137523,2237130.57137523,799229.9681947,2325324.9681947&WIDTH=500&HEIGHT=500",-2146697210]
["OpenLayers.Layer.WMS_6","OpenLayersDiv197png","FAIL","http://inventaire-forestier.ign.fr/cartov2/proxy/getTile?LAYERS=v58tf&TRANSPARENT=true&VISIBILITY=true&FORMAT=image%2FPNG&SERVICE=WMS&VERSION=1.1.1&REQUEST=GetMap&STYLES=&EXCEPTIONS=application%2Fvnd.ogc.se_inimage&SRS=EPSG%3A27572&BBOX=622841.17455576,2237130.57137523,711035.57137523,2325324.9681947&WIDTH=500&HEIGHT=500",-2146697210]
["OpenLayers.Layer.WMS_6","OpenLayersDiv199png","FAIL","http://inventaire-forestier.ign.fr/cartov2/proxy/getTile?LAYERS=v58tf&TRANSPARENT=true&VISIBILITY=true&FORMAT=image%2FPNG&SERVICE=WMS&VERSION=1.1.1&REQUEST=GetMap&STYLES=&EXCEPTIONS=application%2Fvnd.ogc.se_inimage&SRS=EPSG%3A27572&BBOX=534646.77773629,2237130.57137523,622841.17455576,2325324.9681947&WIDTH=500&HEIGHT=500",-2146697210]
["OpenLayers.Layer.WMS_6","OpenLayersDiv201png","FAIL","http://inventaire-forestier.ign.fr/cartov2/proxy/getTile?LAYERS=v58tf&TRANSPARENT=true&VISIBILITY=true&FORMAT=image%2FPNG&SERVICE=WMS&VERSION=1.1.1&REQUEST=GetMap&STYLES=&EXCEPTIONS=application%2Fvnd.ogc.se_inimage&SRS=EPSG%3A27572&BBOX=534646.77773629,2148936.17455576,622841.17455576,2237130.57137523&WIDTH=500&HEIGHT=500",-2146697210]
["OpenLayers.Layer.WMS_6","OpenLayersDiv203png","FAIL","http://inventaire-forestier.ign.fr/cartov2/proxy/getTile?LAYERS=v58tf&TRANSPARENT=true&VISIBILITY=true&FORMAT=image%2FPNG&SERVICE=WMS&VERSION=1.1.1&REQUEST=GetMap&STYLES=&EXCEPTIONS=application%2Fvnd.ogc.se_inimage&SRS=EPSG%3A27572&BBOX=534646.77773629,2060741.77773629,622841.17455576,2148936.17455576&WIDTH=500&HEIGHT=500",-2146697210]
["OpenLayers.Layer.WMS_6","OpenLayersDiv205png","FAIL","http://inventaire-forestier.ign.fr/cartov2/proxy/getTile?LAYERS=v58tf&TRANSPARENT=true&VISIBILITY=true&FORMAT=image%2FPNG&SERVICE=WMS&VERSION=1.1.1&REQUEST=GetMap&STYLES=&EXCEPTIONS=application%2Fvnd.ogc.se_inimage&SRS=EPSG%3A27572&BBOX=622841.17455576,2060741.77773629,711035.57137523,2148936.17455576&WIDTH=500&HEIGHT=500",-2146697210]
["OpenLayers.Layer.WMS_6","OpenLayersDiv207png","FAIL","http://inventaire-forestier.ign.fr/cartov2/proxy/getTile?LAYERS=v58tf&TRANSPARENT=true&VISIBILITY=true&FORMAT=image%2FPNG&SERVICE=WMS&VERSION=1.1.1&REQUEST=GetMap&STYLES=&EXCEPTIONS=application%2Fvnd.ogc.se_inimage&SRS=EPSG%3A27572&BBOX=711035.57137523,2060741.77773629,799229.9681947,2148936.17455576&WIDTH=500&HEIGHT=500",-2146697210]
["OpenLayers.Layer.WMS_6","OpenLayersDiv209png","FAIL","http://inventaire-forestier.ign.fr/cartov2/proxy/getTile?LAYERS=v58tf&TRANSPARENT=true&VISIBILITY=true&FORMAT=image%2FPNG&SERVICE=WMS&VERSION=1.1.1&REQUEST=GetMap&STYLES=&EXCEPTIONS=application%2Fvnd.ogc.se_inimage&SRS=EPSG%3A27572&BBOX=799229.9681947,2060741.77773629,887424.36501417,2148936.17455576&WIDTH=500&HEIGHT=500",-2146697210]
["OpenLayers.Layer.WMS_6","OpenLayersDiv211png","FAIL","http://inventaire-forestier.ign.fr/cartov2/proxy/getTile?LAYERS=v58tf&TRANSPARENT=true&VISIBILITY=true&FORMAT=image%2FPNG&SERVICE=WMS&VERSION=1.1.1&REQUEST=GetMap&STYLES=&EXCEPTIONS=application%2Fvnd.ogc.se_inimage&SRS=EPSG%3A27572&BBOX=887424.36501417,2060741.77773629,975618.7618336399,2148936.17455576&WIDTH=500&HEIGHT=500",-2146697210]
["OpenLayers.Layer.WMS_6","OpenLayersDiv213png","FAIL","http://inventaire-forestier.ign.fr/cartov2/proxy/getTile?LAYERS=v58tf&TRANSPARENT=true&VISIBILITY=true&FORMAT=image%2FPNG&SERVICE=WMS&VERSION=1.1.1&REQUEST=GetMap&STYLES=&EXCEPTIONS=application%2Fvnd.ogc.se_inimage&SRS=EPSG%3A27572&BBOX=887424.36501417,2148936.17455576,975618.7618336399,2237130.57137523&WIDTH=500&HEIGHT=500",-2146697210]
["OpenLayers.Layer.WMS_6","OpenLayersDiv215png","FAIL","http://inventaire-forestier.ign.fr/cartov2/proxy/getTile?LAYERS=v58tf&TRANSPARENT=true&VISIBILITY=true&FORMAT=image%2FPNG&SERVICE=WMS&VERSION=1.1.1&REQUEST=GetMap&STYLES=&EXCEPTIONS=application%2Fvnd.ogc.se_inimage&SRS=EPSG%3A27572&BBOX=887424.36501417,2237130.57137523,975618.7618336399,2325324.9681947&WIDTH=500&HEIGHT=500",-2146697210]
["OpenLayers.Layer.WMS_6","OpenLayersDiv217png","FAIL","http://inventaire-forestier.ign.fr/cartov2/proxy/getTile?LAYERS=v58tf&TRANSPARENT=true&VISIBILITY=true&FORMAT=image%2FPNG&SERVICE=WMS&VERSION=1.1.1&REQUEST=GetMap&STYLES=&EXCEPTIONS=application%2Fvnd.ogc.se_inimage&SRS=EPSG%3A27572&BBOX=887424.36501417,2325324.9681947,975618.7618336399,2413519.36501417&WIDTH=500&HEIGHT=500",-2146697210]
["OpenLayers.Layer.WMS_6","OpenLayersDiv219png","FAIL","http://inventaire-forestier.ign.fr/cartov2/proxy/getTile?LAYERS=v58tf&TRANSPARENT=true&VISIBILITY=true&FORMAT=image%2FPNG&SERVICE=WMS&VERSION=1.1.1&REQUEST=GetMap&STYLES=&EXCEPTIONS=application%2Fvnd.ogc.se_inimage&SRS=EPSG%3A27572&BBOX=799229.9681947,2325324.9681947,887424.36501417,2413519.36501417&WIDTH=500&HEIGHT=500",-2146697210]
["OpenLayers.Layer.WMS_6","OpenLayersDiv221png","FAIL","http://inventaire-forestier.ign.fr/cartov2/proxy/getTile?LAYERS=v58tf&TRANSPARENT=true&VISIBILITY=true&FORMAT=image%2FPNG&SERVICE=WMS&VERSION=1.1.1&REQUEST=GetMap&STYLES=&EXCEPTIONS=application%2Fvnd.ogc.se_inimage&SRS=EPSG%3A27572&BBOX=711035.57137523,2325324.9681947,799229.9681947,2413519.36501417&WIDTH=500&HEIGHT=500",-2146697210]
["OpenLayers.Layer.WMS_6","OpenLayersDiv223png","FAIL","http://inventaire-forestier.ign.fr/cartov2/proxy/getTile?LAYERS=v58tf&TRANSPARENT=true&VISIBILITY=true&FORMAT=image%2FPNG&SERVICE=WMS&VERSION=1.1.1&REQUEST=GetMap&STYLES=&EXCEPTIONS=application%2Fvnd.ogc.se_inimage&SRS=EPSG%3A27572&BBOX=622841.17455576,2325324.9681947,711035.57137523,2413519.36501417&WIDTH=500&HEIGHT=500",-2146697210]
["OpenLayers.Layer.WMS_6","OpenLayersDiv225png","FAIL","http://inventaire-forestier.ign.fr/cartov2/proxy/getTile?LAYERS=v58tf&TRANSPARENT=true&VISIBILITY=true&FORMAT=image%2FPNG&SERVICE=WMS&VERSION=1.1.1&REQUEST=GetMap&STYLES=&EXCEPTIONS=application%2Fvnd.ogc.se_inimage&SRS=EPSG%3A27572&BBOX=534646.77773629,2325324.9681947,622841.17455576,2413519.36501417&WIDTH=500&HEIGHT=500",-2146697210]